bitfinex/quotes_SOLUSD_20240809
["timestamp","ask_amount","ask_price","bid_price","bid_amount"]
[1723209329347,42.3945,154.93,154.84,35.94]
[1723209329543,8.06931499,154.92,154.84,35.94]
[1723209329744,35.94,154.95,154.84,35.94]
[1723209330267,35.94,154.87,154.77,22.50844993]
[1723209330574,35.94,154.91,154.8,35.94]
[1723209330767,65.25098,154.9,154.8,35.94]
[1723209330951,35.94,154.87,154.78,35.94]
[1723209331266,46.86591597,154.86,154.77,15.8575]
[1723209331444,0.12549,154.85,154.77,15.8575]
[1723209332843,36.06549,154.85,154.77,15.8575]
[1723209333042,46.86621435,154.84,154.77,15.8575]
[1723209333256,45.25098,154.84,154.77,15.8575]
[1723209333952,45.12549,154.84,154.77,15.8575]
[1723209336279,1.61523096,154.83,154.77,15.8575]
[1723209336483,0.12549,154.82,154.76,0.8038863]
[1723209336787,0.25098,154.82,154.76,0.8038863]
[1723209336988,45.12549,154.82,154.76,0.8038863]
[1723209337198,0.12549,154.82,154.76,0.8038863]
[1723209337356,45.0,154.84,154.76,36.7438863]
[1723209337551,35.94,154.87,154.76,36.7438863]
[1723209337757,20.0,154.86,154.78,35.94]
[1723209337963,42.0089,154.89,154.8,35.94]
[1723209338261,1.61467588,154.88,154.8,35.94]
[1723209338471,35.94,154.91,154.82,35.94]
[1723209338664,42.2364,154.93,154.82,52.1845]
[1723209338857,35.94,154.91,154.82,52.1845]
[1723209339270,20.0,154.9,154.82,52.1845]
[1723209339586,1.61440463,154.9,154.82,52.1845]
[1723209339764,1.61440322,154.89,154.82,16.2445]
[1723209339972,35.94,154.87,154.78,35.94]
[1723209340564,35.94,154.91,154.8,35.94]
[1723209342264,45.25098,154.9,154.8,35.94]
[1723209342460,0.12549,154.92,154.82,35.94]
[1723209342666,20.25098,154.92,154.83,1.12817032]
[1723209343182,35.94,154.91,154.8,35.94]
[1723209343487,35.94,154.91,154.78,35.94]
[1723209343488,35.94,154.89,154.78,35.94]
[1723209343788,46.86575137,154.88,154.78,35.94]
[1723209343984,35.94,154.87,154.78,35.94]
[1723209344196,46.61480533,154.86,154.78,35.94]
[1723209344376,45.0,154.86,154.78,35.94]
[1723209347090,45.0,154.86,154.77,16.1811]
[1723209347091,0.12549,154.85,154.77,16.1811]
[1723209347401,36.31647,154.85,154.77,16.1811]
[1723209347568,45.0,154.84,154.77,16.1811]
[1723209347771,0.12549,154.83,154.77,16.1811]
[1723209347967,35.94,154.87,154.77,52.1211]
[1723209348191,20.12549,154.86,154.77,52.1211]
[1723209348367,65.12549,154.86,154.77,52.1211]
[1723209348561,37.55492987,154.85,154.77,16.1811]
[1723209348862,45.25098,154.84,154.77,16.1811]
[1723209349176,1.61521323,154.83,154.77,16.1811]
[1723209349366,1.61522221,154.82,154.77,16.1811]
[1723209349572,45.25098,154.84,154.77,16.1811]
[1723209352982,46.86619878,154.84,154.77,16.1811]
[1723209353375,45.25098,154.84,154.77,16.1811]
[1723209353594,45.12549,154.84,154.77,16.1811]
[1723209353777,1.6150838,154.83,154.77,16.1811]
[1723209354395,42.3968,154.88,154.77,16.1811]
[1723209354396,35.94,154.88,154.79,35.94]
[1723209355587,6.58249,154.87,154.77,52.1211]
[1723209355903,35.94,154.85,154.77,16.1811]
[1723209356081,46.86610467,154.84,154.77,16.1811]
[1723209356794,46.86610467,154.84,154.76,0.8038863]
[1723209356795,35.94,154.81,154.76,0.8038863]
[1723209356969,46.61542377,154.8,154.76,0.8038863]
[1723209357172,1.61542368,154.79,154.76,0.8038863]
[1723209357601,45.0,154.8,154.76,0.8038863]
[1723209357776,1.6154331,154.79,154.76,0.8038863]
[1723209357978,45.0,154.8,154.76,0.8038863]
[1723209358204,35.94,154.85,154.76,0.8038863]
[1723209358410,35.94,154.87,154.77,35.94]
[1723209358781,35.94,154.87,154.77,37.06937645]
[1723209359180,35.94,154.87,154.77,37.06921688]
[1723209359487,51.8745,154.91,154.81,35.94]
[1723209359686,1.6144691,154.9,154.81,35.94]
[1723209359898,35.94,154.89,154.81,35.94]
[1723209360192,1.61465689,154.88,154.81,35.94]
[1723209360401,35.94,154.89,154.81,35.94]
[1723209360402,37.55460085,154.89,154.81,35.94]
[1723209360778,35.94,154.89,154.79,35.94]
[1723209361121,35.94,154.91,154.83,35.94]
[1723209361430,48.91855581,154.93,154.83,41.9487]
[1723209361607,35.94,154.89,154.79,41.9487]
[1723209361907,35.94,154.87,154.79,6.0087]
[1723209362206,1.61485712,154.86,154.79,6.0087]
[1723209362803,1.61485712,154.86,154.77,15.7478]
[1723209362804,35.94,154.83,154.77,15.7478]
[1723209362986,35.94,154.85,154.77,15.7478]
[1723209363188,45.0,154.84,154.77,15.7478]
[1723209363507,45.0,154.84,154.77,51.6878]
[1723209363716,45.0,154.85,154.77,51.6878]
[1723209363878,1.61505144,154.84,154.77,15.7478]
[1723209364080,36.19098,154.83,154.77,15.7478]
[1723209364303,46.61528177,154.82,154.77,15.7478]
[1723209364512,46.61528177,154.82,154.76,0.8038863]
[1723209364806,0.12549,154.81,154.76,0.8038863]
[1723209364983,45.0,154.82,154.76,0.8038863]
[1723209365406,1.61521108,154.81,154.76,0.8038863]
[1723209365588,1.74099246,154.8,154.76,0.8038863]
[1723209365779,36.06549,154.79,154.76,0.8038863]
[1723209365979,35.94,154.79,154.76,0.8038863]
[1723209366207,45.0,154.78,154.76,0.8038863]
[1723209368007,37.55573087,154.77,154.76,0.8038863]
[1723209368308,82.93220087,154.77,154.76,0.8038863]
[1723209368806,109.39340087,154.77,154.76,0.8038863]
[1723209369312,101.31647,154.77,154.76,0.8038863]
[1723209369528,109.39378734,154.77,154.76,0.8038863]
[1723209369708,6.4623,154.75,154.67,6.6595]
[1723209369915,35.94,154.72,154.66,1.33095255]
[1723209370208,0.25098,154.71,154.66,1.33095255]
[1723209370407,35.94,154.7,154.66,1.33095255]
[1723209370623,46.86759954,154.69,154.66,1.33095255]
[1723209370801,35.94,154.7,154.66,1.33095255]
[1723209371106,26.5164,154.77,154.66,1.33095255]
[1723209371107,35.94,154.72,154.66,1.33095255]
[1723209371281,1.61652854,154.76,154.66,1.33095255]
[1723209371282,35.94,154.7,154.66,1.33095255]
[1723209371489,46.99311984,154.69,154.66,1.33095255]
[1723209372404,35.94,154.68,154.66,1.33095255]
[1723209372587,45.0,154.69,154.66,1.33095255]
[1723209372799,35.94,154.72,154.66,1.33095255]
[1723209372998,20.0,154.71,154.66,1.33095255]
[1723209373410,42.61362994,154.76,154.66,1.33095255]
[1723209373717,35.94,154.76,154.67,43.71079805]
[1723209373934,35.94,154.76,154.67,42.5786]
[1723209374091,35.94,154.8,154.71,35.94]
[1723209374288,35.94,154.82,154.71,35.94]
[1723209374505,35.94,154.8,154.69,35.94]
[1723209374709,35.94,154.78,154.68,15.5282]
[1723209374913,35.94,154.76,154.68,15.5282]
[1723209375110,35.94,154.78,154.68,15.5282]
[1723209375420,35.94,154.78,154.69,35.94]
[1723209375789,35.94,154.76,154.68,15.5282]
[1723209376194,45.12549,154.75,154.68,15.5282]
[1723209376814,37.68176429,154.74,154.66,1.33095255]
[1723209377204,45.25098,154.73,154.66,1.33095255]
[1723209377596,46.86735936,154.73,154.66,1.33095255]
[1723209377799,35.94,154.72,154.66,1.33095255]
[1723209377992,46.99300376,154.71,154.66,1.33095255]
[1723209378602,45.37647,154.71,154.66,1.33095255]
[1723209379224,45.12549,154.71,154.66,1.33095255]
[1723209379395,45.0,154.71,154.66,1.33095255]
[1723209381322,0.25098,154.7,154.66,1.33095255]
[1723209381518,45.0,154.71,154.66,1.33095255]
[1723209382245,0.12549,154.7,154.66,1.33095255]
[1723209382545,20.37647,154.7,154.66,1.33095255]
[1723209382730,56.31647,154.7,154.66,1.33095255]
[1723209382929,45.0,154.69,154.66,1.33095255]
[1723209383112,35.94,154.72,154.66,1.33095255]
[1723209383438,1.61641589,154.76,154.66,1.33095255]
[1723209383439,35.94,154.74,154.66,1.33095255]
[1723209383644,20.0,154.73,154.66,1.33095255]
[1723209384138,37.55639678,154.72,154.66,1.33095255]
[1723209384317,35.94,154.7,154.66,1.33095255]
[1723209384517,45.0,154.69,154.66,1.33095255]
[1723209384737,35.94,154.72,154.66,1.33095255]
[1723209384926,45.0,154.71,154.66,1.33095255]
[1723209385252,35.94,154.74,154.66,1.33095255]
[1723209385842,35.94,154.72,154.66,1.33095255]
[1723209386045,1.61650996,154.71,154.66,1.33095255]
[1723209386337,45.12549,154.71,154.66,1.33095255]
[1723209386541,65.12549,154.71,154.66,1.33095255]
[1723209387123,0.12549,154.7,154.66,1.33095255]
[1723209387543,45.0,154.71,154.66,1.33095255]
[1723209388244,0.12549,154.7,154.66,1.33095255]
[1723209388639,56.19098,154.7,154.66,1.33095255]
[1723209388827,45.0,154.69,154.66,1.33095255]
[1723209389038,0.12549,154.68,154.66,1.33095255]
[1723209391019,1.74215958,154.68,154.66,1.33095255]
[1723209391425,0.12549,154.68,154.66,1.33095255]
[1723209391647,20.25098,154.68,154.66,1.33095255]
[1723209391961,45.0,154.67,154.66,1.33095255]
[1723209392540,42.6169765,154.76,154.66,1.33095255]
[1723209392849,35.94,154.78,154.68,42.4138]
[1723209393758,35.94,154.76,154.68,6.4738]
[1723209394318,20.0,154.75,154.68,6.4738]
[1723209394552,1.61612631,154.74,154.68,6.4738]
[1723209394744,1.61612631,154.74,154.67,15.7237]
[1723209394745,35.94,154.72,154.67,15.7237]
[1723209394928,1.61637854,154.71,154.67,15.7237]
[1723209395129,1.61637854,154.7,154.67,15.7237]
[1723209395622,0.25098,154.69,154.66,1.33095255]
[1723209395822,35.94,154.68,154.66,1.33095255]
[1723209396021,0.12549,154.67,154.66,1.33095255]
[1723209396221,0.37647,154.69,154.66,1.33095255]
[1723209396222,20.25098,154.69,154.66,1.33095255]
[1723209396452,45.12549,154.68,154.66,1.33095255]
[1723209396649,0.12549,154.67,154.66,1.33095255]
[1723209396852,45.12549,154.68,154.66,1.33095255]
[1723209397237,81.06549,154.68,154.66,1.33095255]
[1723209397444,21.86807224,154.67,154.66,1.33095255]
[1723209397639,73.45886224,154.67,154.66,1.33095255]
[1723209398649,73.45886224,154.67,154.61,0.8038863]
[1723209398650,6.5671,154.66,154.61,0.8038863]
[1723209398845,6.5671,154.66,154.6,1.34787333]
[1723209398846,35.94,154.62,154.5,17.10881488]
[1723209399050,35.94,154.59,154.5,17.10881488]
[1723209399355,45.12549,154.58,154.5,17.10881488]
[1723209399648,45.12549,154.58,154.51,35.94]
[1723209399649,45.0,154.58,154.51,35.94]
[1723209401734,0.25098,154.57,154.5,17.10881488]
[1723209402049,45.0,154.58,154.55,0.8647941]
[1723209402356,0.12549,154.57,154.55,0.8647941]
[1723209402549,37.93446245,154.57,154.55,0.8647941]
[1723209402851,71.4699,154.56,154.55,0.8647941]
[1723209403053,71.72088,154.56,154.5,1.38171488]
[1723209403256,35.94,154.54,154.5,1.38171488]
[1723209403457,65.25098,154.53,154.5,1.38171488]
[1723209403757,0.12549,154.52,154.5,1.38171488]
[1723209404047,65.25098,154.53,154.5,1.38171488]
[1723209404253,35.94,154.52,154.5,1.38171488]
[1723209404459,35.94,154.54,154.5,1.38171488]
[1723209404854,1.61832151,154.59,154.5,1.38171488]
[1723209404855,35.94,154.56,154.5,1.38171488]
[1723209405255,35.94,154.58,154.5,1.38171488]
[1723209405435,35.94,154.56,154.5,1.38171488]
[1723209406747,1.61779923,154.55,154.5,1.38171488]
[1723209406952,37.55825462,154.54,154.5,1.38171488]
[1723209407252,1.61832566,154.53,154.5,1.38171488]
[1723209407554,1.61837214,154.53,154.5,1.38171488]
[1723209407750,0.25098,154.52,154.5,1.38171488]
[1723209408347,56.19098,154.52,154.5,1.38171488]
[1723209408558,46.61852096,154.51,154.5,1.38171488]
[1723209408727,65.37647,154.51,154.5,1.38171488]
[1723209408928,65.12549,154.51,154.5,1.38171488]
[1723209409155,36.06549,154.54,154.5,1.38171488]
[1723209409459,35.94,154.56,154.5,1.38171488]
[1723209410358,37.55820165,154.56,154.5,1.38171488]
[1723209410654,35.94,154.54,154.5,1.38171488]
[1723209410866,35.94,154.56,154.5,1.38171488]
[1723209411470,35.94,154.54,154.5,1.38171488]
[1723209411763,35.94,154.56,154.5,1.38171488]
[1723209412267,35.94,154.58,154.5,1.38171488]
[1723209412440,35.94,154.56,154.5,1.38171488]
[1723209412861,21.61818107,154.55,154.5,1.38171488]
[1723209413166,35.94,154.54,154.5,1.38171488]
[1723209413337,65.0,154.53,154.5,1.38171488]
[1723209413861,0.12549,154.52,154.5,1.38171488]
[1723209414468,36.19098,154.52,154.5,1.38171488]
[1723209414774,45.0,154.51,154.5,1.38171488]
[1723209415068,45.12549,154.51,154.5,1.38171488]
[1723209416275,35.94,154.52,154.5,1.38171488]
[1723209416438,1.11792992,154.58,154.51,22.6137]
[1723209416633,42.4083,154.6,154.51,22.6137]
[1723209416838,35.94,154.58,154.51,22.6137]
[1723209417356,35.94,154.56,154.51,22.6137]
[1723209417531,35.94,154.58,154.51,22.6137]
[1723209418163,1.61792379,154.57,154.51,22.6137]
[1723209418351,35.94,154.56,154.51,22.6137]
[1723209419171,0.12549,154.55,154.51,22.6137]
[1723209419348,35.94,154.56,154.51,22.6137]
[1723209419743,35.94,154.58,154.51,22.6137]
[1723209419953,20.0,154.57,154.51,22.6137]
[1723209420269,35.94,154.6,154.52,1.13631858]
[1723209420448,35.94,154.6,154.51,58.5537]
[1723209421066,35.94,154.6,154.51,22.6137]
[1723209421449,35.94,154.62,154.51,58.5537]
[1723209421755,20.0,154.61,154.51,59.68949466]
[1723209421955,35.94,154.64,154.53,35.94]
[1723209422147,35.94,154.64,154.55,35.94]
[1723209422467,42.60974433,154.68,154.58,6.5359]
[1723209422666,35.94,154.68,154.59,1.13392209]
[1723209422973,35.94,154.7,154.59,37.07392209]
[1723209424155,35.94,154.68,154.59,35.94]
[1723209424362,35.94,154.68,154.58,6.5359]
[1723209424363,35.94,154.63,154.58,6.5359]
[1723209425576,35.94,154.61,154.58,6.5359]
[1723209426483,35.94,154.59,154.54,6.1734]
[1723209427159,80.94,154.63,154.55,1.13559291]
[1723209427358,20.0,154.62,154.55,1.13484296]
[1723209427555,20.0,154.62,154.54,42.1134]
[1723209427556,20.0,154.62,154.54,6.1734]
[1723209427772,45.0,154.61,154.54,6.1734]
[1723209427976,35.94,154.65,154.54,42.1134]
[1723209428160,20.0,154.64,154.56,35.94]
[1723209428352,35.94,154.65,154.57,1.13455487]
[1723209428548,35.94,154.65,154.56,35.94]
[1723209429072,35.94,154.65,154.56,37.07445462]
[1723209429483,51.4668,154.64,154.54,42.1134]
[1723209429659,35.94,154.65,154.54,42.1134]
[1723209429856,35.94,154.67,154.56,35.94]
[1723209430088,8.29404194,154.71,154.6,42.5556]
[1723209430089,35.94,154.69,154.6,42.5556]
[1723209430380,35.94,154.71,154.6,42.5556]
[1723209430757,35.94,154.69,154.6,6.6156]
[1723209431074,42.4062,154.65,154.6,6.6156]
[1723209431373,35.94,154.65,154.6,6.6156]
[1723209431754,35.94,154.67,154.6,7.7498699]
[1723209431952,35.94,154.69,154.61,1.13366524]
[1723209432174,65.0,154.68,154.61,1.13366524]
[1723209433188,35.94,154.67,154.6,6.6156]
[1723209433497,45.0,154.66,154.6,6.6156]
[1723209433858,20.0,154.68,154.61,1.1340925]
[1723209434375,20.0,154.68,154.6,42.5556]
[1723209434570,35.94,154.71,154.6,42.5556]
[1723209434876,35.94,154.69,154.6,42.5556]
[1723209435075,35.94,154.69,154.61,1.13313573]
[1723209435386,35.94,154.71,154.62,35.94]
[1723209435554,35.94,154.71,154.63,1.13273291]
[1723209436377,35.94,154.71,154.62,35.94]
[1723209436778,1.11677248,154.74,154.65,6.3229]
[1723209437086,6.4598,154.81,154.7,6.3229]
[1723209437383,6.68688533,154.81,154.72,35.94]
[1723209437583,1.61523743,154.8,154.72,35.94]
[1723209437769,35.94,154.81,154.72,35.94]
[1723209437971,35.94,154.81,154.73,1.13044676]
[1723209438164,35.94,154.83,154.73,1.13044676]
[1723209438379,35.94,154.85,154.75,22.5945]
[1723209438686,35.94,154.81,154.75,22.5945]
[1723209439052,35.94,154.83,154.75,22.5945]
[1723209439253,6.4574,154.86,154.75,22.5945]
[1723209439254,265.88871608,154.88,154.76,35.94]
[1723209439569,35.94,154.83,154.75,22.5945]
[1723209440462,35.94,154.85,154.76,35.94]
[1723209440660,35.94,154.89,154.78,35.94]
[1723209441186,1.61454507,154.93,154.8,35.94]
[1723209441367,35.94,154.93,154.82,35.94]
[1723209441762,35.94,154.91,154.83,1.12765345]
[1723209442061,7.80114714,154.98,154.84,35.94]
[1723209442062,35.94,154.95,154.84,35.94]
[1723209442260,35.94,154.95,154.85,1.12738136]
[1723209442662,35.94,154.95,154.84,35.94]
[1723209442861,42.394,154.95,154.84,35.94]
[1723209443077,35.94,154.93,154.82,35.94]
[1723209443277,35.94,154.91,154.82,35.94]
[1723209444081,35.94,154.93,154.83,1.12798058]
[1723209444257,20.0,154.92,154.83,1.12798058]
[1723209444458,1.11527327,154.98,154.86,35.94]
[1723209444688,35.94,154.96,154.87,1.12701199]
[1723209445356,42.3933,154.96,154.87,16.5381]
[1723209445559,35.94,154.94,154.87,16.5381]
[1723209445769,35.94,154.92,154.87,16.5381]
[1723209446183,35.94,154.96,154.87,16.5381]
[1723209446184,35.94,154.94,154.87,16.5381]
[1723209446387,35.94,154.92,154.87,16.5381]
[1723209446567,42.3951,154.92,154.87,16.5381]
[1723209446771,35.94,154.9,154.87,16.5381]
[1723209446977,35.94,154.94,154.87,16.5381]
[1723209447286,45.0,154.93,154.87,16.5381]
[1723209447487,35.94,154.94,154.87,16.5381]
[1723209447678,35.94,154.96,154.88,1.12727033]
[1723209447882,36.7438863,155.0,154.88,37.06727033]
[1723209448087,43.1954863,155.0,154.9,35.94]
[1723209448393,43.1954863,155.0,154.91,1.12617061]
[1723209448565,36.7438863,155.0,154.91,1.12617061]
[1723209448768,36.7438863,155.0,154.9,35.94]
[1723209449288,35.94,154.94,154.87,16.5381]
[1723209449989,35.94,154.96,154.87,16.5381]
[1723209450194,20.0,154.95,154.87,16.5381]
[1723209450384,45.0,154.95,154.87,16.5381]
[1723209450567,35.94,154.96,154.87,16.5381]
[1723209450769,20.0,154.95,154.87,16.5381]
[1723209450969,35.94,154.94,154.87,16.5381]
[1723209451384,20.0,154.95,154.87,16.5381]
[1723209451799,35.94,154.98,154.87,52.4781]
[1723209451967,42.3926,154.98,154.87,52.4781]
[1723209452273,35.94,154.96,154.88,1.1264955]
[1723209452790,35.94,154.96,154.87,52.4781]
[1723209453790,35.94,154.92,154.87,16.5381]
[1723209455065,35.94,154.94,154.87,16.5381]
[1723209455272,45.12549,154.95,154.87,16.5381]
[1723209455273,35.94,154.92,154.87,16.5381]
[1723209455487,35.94,154.88,154.87,16.5381]
[1723209455698,6.4577,154.86,154.83,15.8457]
[1723209455995,35.94,154.85,154.83,15.8457]
[1723209456194,0.12549,154.84,154.8,6.5622]
[1723209456396,35.94,154.82,154.8,6.5622]
[1723209456576,35.94,154.82,154.77,16.0619]
[1723209456773,101.06549,154.84,154.78,1.12990638]
[1723209456975,65.0,154.84,154.77,17.19131987]
[1723209457191,20.0,154.84,154.77,16.0619]
[1723209457377,35.94,154.86,154.77,16.0619]
[1723209457588,35.94,154.82,154.77,16.0619]
[1723209457893,35.94,154.8,154.77,16.0619]
[1723209458480,45.0,154.79,154.77,16.0619]
[1723209458801,35.94,154.78,154.7,21.8556]
[1723209460297,45.0,154.77,154.7,21.8556]
[1723209460914,35.94,154.76,154.7,21.8556]
[1723209461685,45.0,154.77,154.7,21.8556]
[1723209462006,45.12549,154.78,154.7,21.8556]
[1723209462385,6.4618,154.76,154.7,21.8556]
[1723209462588,45.0,154.75,154.7,21.8556]
[1723209462813,44.17,154.73,154.65,6.1795]
[1723209463013,50.6329,154.73,154.65,6.1795]
[1723209463208,45.0,154.76,154.66,1.13261161]
[1723209463414,0.12549,154.77,154.66,45.30261161]
[1723209463612,44.17,154.82,154.66,45.30261161]
[1723209463794,6.71048,154.81,154.66,45.30261161]
[1723209464309,44.17,154.82,154.67,22.168]
[1723209464510,44.17,154.85,154.68,1.13069945]
[1723209464706,1.61542441,154.84,154.68,1.13069945]
[1723209465298,44.17,154.82,154.67,22.168]
[1723209465498,6.46,154.8,154.67,22.168]
[1723209465713,20.0,154.79,154.67,22.168]
[1723209465995,0.12549,154.78,154.67,22.168]
[1723209466806,6.58629,154.78,154.67,22.168]
[1723209467014,45.0,154.77,154.67,22.168]
[1723209467220,0.12549,154.76,154.67,22.168]
[1723209467523,21.99254875,154.76,154.67,22.168]
[1723209467820,45.0,154.75,154.67,22.168]
[1723209468003,0.12549,154.74,154.67,22.168]
[1723209468321,16.1454,154.85,154.68,1.13218834]
[1723209468521,45.12549,154.78,154.68,1.13218834]
[1723209468728,20.0,154.77,154.68,1.13218834]
[1723209469325,303.37,154.9,154.74,44.17]
[1723209469637,303.37,154.9,154.77,6.4383]
[1723209469638,44.17,154.9,154.77,6.4383]
[1723209469937,6.68296723,154.89,154.78,1.12895695]
[1723209470245,6.68296723,154.89,154.81,15.9114]
[1723209470423,44.17,154.96,154.82,1.12758186]
[1723209470627,6.4549,154.92,154.81,15.9114]
[1723209471121,6.4555,154.91,154.81,15.9114]
[1723209471333,44.17,154.93,154.81,15.9114]
[1723209471630,6.4562,154.89,154.81,15.9114]
[1723209472029,6.4557,154.9,154.81,15.9114]
[1723209472214,26.4563,154.89,154.81,15.9114]
[1723209472416,20.0,154.89,154.81,15.9114]
[1723209472619,6.4554,154.91,154.81,15.9114]
[1723209472820,20.0,154.9,154.81,15.9114]
[1723209473622,26.4553,154.91,154.81,15.9114]
[1723209473811,26.58079,154.91,154.81,15.9114]
[1723209474306,45.0,154.9,154.81,15.9114]
[1723209474507,20.0,154.89,154.81,15.9114]
[1723209474730,45.0,154.88,154.81,15.9114]
[1723209475409,45.0,154.88,154.82,1.12895058]
[1723209475616,0.25098,154.92,154.82,1.12895058]
[1723209475827,0.12549,154.91,154.83,6.0762]
[1723209476125,14.2531616,154.97,154.84,1.1274914]
[1723209476718,7.8002616,154.97,154.85,16.0254]
[1723209476917,7.8002616,154.97,154.86,1.12679296]
[1723209477242,6.4535,154.96,154.85,16.0254]
[1723209477827,7.8002616,154.97,154.85,16.0254]
[1723209478011,6.4542,154.94,154.85,16.0254]
[1723209478336,71.58009,154.93,154.85,16.0254]
[1723209478506,71.4546,154.93,154.85,16.0254]
[1723209478710,0.12549,154.92,154.85,16.0254]
[1723209479333,6.4524,154.98,154.86,1.12770546]
[1723209479546,6.4524,154.98,154.85,17.1517467]
[1723209479737,44.17,155.02,154.86,52.0506167]
[1723209479939,2.5092913,155.05,154.87,15.8824]
[1723209479940,44.17,155.05,154.87,15.8824]
[1723209480117,44.17,155.05,154.88,1.12578801]
[1723209480432,44.17,155.02,154.87,15.8824]
[1723209480638,44.17,155.02,154.88,1.12629153]
[1723209480823,6.4512,155.01,154.87,15.8824]
[1723209481137,6.4512,155.01,154.88,1.12613923]
[1723209481841,50.6198,155.05,154.9,15.9353]
[1723209482011,50.6196,155.05,154.91,1.1251348]
[1723209482211,7.2554863,155.0,154.92,6.3646]
[1723209482416,0.8038863,155.0,154.92,6.3646]
[1723209482617,0.8038863,155.0,154.93,1.12528812]
[1723209482818,0.8038863,155.0,154.94,15.9353]
[1723209483037,0.8038863,155.0,154.95,1.12488867]
[1723209483425,0.8038863,155.0,154.94,15.9353]
[1723209483622,7.2554863,155.0,154.94,15.9353]
[1723209483940,0.8038863,155.0,154.94,15.9353]
[1723209484512,45.8038863,155.0,154.94,15.9353]
[1723209484844,6.4528,154.98,154.94,15.9353]
[1723209485014,45.0,154.97,154.94,15.9353]
[1723209485725,20.12549,154.96,154.92,6.3646]
[1723209485919,51.4536,154.95,154.92,6.3646]
[1723209487142,45.0,154.95,154.92,6.3646]
[1723209488040,45.0,154.95,154.9,16.0214]
[1723209488041,51.4538,154.95,154.9,16.0214]
[1723209488220,20.25098,154.94,154.88,6.49]
[1723209488423,45.0,154.93,154.88,6.49]
[1723209488723,26.83147,154.92,154.86,15.2327]
[1723209488915,6.4557,154.9,154.86,15.2327]
[1723209489114,26.83177,154.92,154.86,15.2327]
[1723209489333,45.0,154.91,154.86,15.2327]
[1723209489619,50.6233,154.96,154.87,1.12801786]
[1723209489837,50.6233,154.96,154.88,1.12702788]
[1723209489838,36.05,154.94,154.88,1.12702788]
[1723209490039,20.0,154.93,154.88,1.12702788]
[1723209490939,20.0,154.93,154.87,1.12706478]
[1723209491114,20.0,154.93,154.86,15.2327]
[1723209491315,20.0,154.93,154.86,16.35980101]
[1723209491518,42.5049,154.92,154.86,15.2327]
[1723209491830,45.0,154.91,154.86,15.2327]
[1723209492343,51.4555,154.91,154.86,15.2327]
[1723209492527,45.0,154.91,154.86,15.2327]
[1723209492931,36.05,154.92,154.86,15.2327]
[1723209493120,20.0,154.93,154.87,1.12719345]
[1723209493531,20.0,154.93,154.86,16.35980674]
[1723209493927,20.0,154.93,154.86,15.2327]
[1723209494128,45.0,154.92,154.86,15.2327]
[1723209495428,36.05,154.96,154.87,1.12740668]
[1723209495626,401.2,155.11,154.9,36.05]
[1723209495627,36.8538863,155.0,154.9,36.05]
[1723209495852,0.8038863,155.0,154.93,15.0986]
[1723209496024,0.8038863,155.0,154.94,1.12532379]
[1723209496521,0.8038863,155.0,154.93,15.0986]
[1723209496723,0.8038863,155.0,154.93,16.22405069]
[1723209496956,0.8038863,155.0,154.94,6.1599]
[1723209497756,36.8538863,155.0,154.94,6.1599]
[1723209497934,36.8538863,155.0,154.94,7.28534232]
[1723209498132,0.8038863,155.0,154.94,7.28534232]
[1723209498854,36.8538863,155.0,154.94,6.1599]
[1723209499035,51.4523,154.99,154.94,6.1599]